bitfinex/quotes_BTCUSD_20230120
["timestamp","ask_amount","ask_price","bid_price","bid_amount"]
[1674248361682,4.97e-06,22284.0,22283.0,2.55310787]
[1674248361934,4.97e-06,22284.0,22283.0,1.74911131]
[1674248362187,0.01700834,22291.0,22284.0,0.15]
[1674248362448,0.47148149,22291.0,22285.0,0.297665]
[1674248362728,0.1339,22287.0,22286.0,0.18502243]
[1674248363244,0.01700834,22291.0,22286.0,0.52723062]
[1674248363502,0.01700834,22291.0,22286.0,0.18502243]
[1674248363756,0.09718316,22285.0,22283.0,1.95916]
[1674248364016,0.09718316,22285.0,22284.0,0.0046]
[1674248364541,0.54871916,22285.0,22284.0,0.0046]
[1674248364805,0.15,22284.0,22283.0,1.95916]
[1674248365058,1.23740015,22284.0,22283.0,6e-05]
[1674248365340,6e-05,22283.0,22274.0,0.00019]
[1674248365638,0.1339,22278.0,22274.0,0.00019]
[1674248365893,0.324858,22277.0,22274.0,0.00019]
[1674248366260,0.892243,22276.0,22272.0,2.50303062]
[1674248366520,0.318814,22275.0,22272.0,1.9758]
[1674248366777,0.614434,22274.0,22266.0,0.898225]
[1674248367061,0.470889,22273.0,22266.0,0.898225]
[1674248367316,0.3,22272.0,22265.0,0.53165906]
[1674248367571,0.3,22272.0,22265.0,0.00442844]
[1674248367841,0.1339,22275.0,22269.0,0.67723062]
[1674248368098,0.1339,22279.0,22273.0,0.52723062]
[1674248368358,0.1327,22281.0,22274.0,0.50975443]
[1674248368604,0.1327,22281.0,22273.0,0.52723062]
[1674248368605,0.1333,22279.0,22275.0,0.18502243]
[1674248368866,0.311489,22278.0,22276.0,0.18502243]
[1674248369124,0.1332,22279.0,22274.0,0.15]
[1674248369125,0.13095011,22279.0,22274.0,0.15]
[1674248369377,0.13095011,22279.0,22274.0,0.18502243]
[1674248369624,0.46756816,22278.0,22270.0,0.52723062]
[1674248369895,0.773308,22277.0,22273.0,0.15]
[1674248370162,0.15,22281.0,22274.0,0.18502243]
[1674248370425,6e-05,22282.0,22279.0,0.52723062]
[1674248370705,6e-05,22282.0,22280.0,0.50511743]
[1674248370932,6e-05,22282.0,22281.0,0.64904143]
[1674248371196,6e-05,22282.0,22281.0,1.09785343]
[1674248371449,6e-05,22282.0,22281.0,0.464019]
[1674248371707,6e-05,22282.0,22281.0,0.83793089]
[1674248372023,0.09718316,22285.0,22281.0,0.78294143]
[1674248372275,0.09718316,22285.0,22282.0,1.83387643]
[1674248372535,0.09718316,22285.0,22284.0,0.52723062]
[1674248372808,0.09718316,22285.0,22284.0,1.72490562]
[1674248373104,0.09718316,22285.0,22284.0,1.94227498]
[1674248373366,0.09493388,22285.0,22284.0,1.94227498]
[1674248373868,0.01797022,22288.0,22285.0,0.09493]
[1674248374120,0.01797022,22288.0,22286.0,1.209623]
[1674248374553,0.01297022,22288.0,22287.0,0.98534516]
[1674248374807,0.01297022,22288.0,22287.0,1.28007962]
[1674248375823,0.01297022,22288.0,22287.0,0.83138762]
[1674248376067,0.01297022,22288.0,22287.0,1.28007962]
[1674248376595,0.01297022,22288.0,22287.0,1.74898121]
[1674248376891,0.01297022,22288.0,22287.0,2.16165078]
[1674248377140,0.01072124,22288.0,22287.0,1.87777162]
[1674248377375,0.01072124,22288.0,22287.0,1.72777162]
[1674248378175,0.01072124,22288.0,22287.0,0.304157]
[1674248378176,0.07662226,22288.0,22287.0,0.304157]
[1674248378931,0.07662226,22288.0,22285.0,0.897457]
[1674248379194,0.00622328,22288.0,22286.0,0.767477]
[1674248379479,0.07437328,22288.0,22287.0,0.297575]
[1674248379728,0.07437328,22288.0,22286.0,0.97494162]
[1674248380249,0.07437328,22288.0,22284.0,3.437041]
[1674248380250,0.1333,22287.0,22284.0,2.9883]
[1674248380503,0.1339,22285.0,22284.0,2.9883]
[1674248380817,0.3,22286.0,22281.0,0.52623062]
[1674248381014,0.326234,22285.0,22281.0,0.52623062]
[1674248381268,0.743444,22284.0,22278.0,0.97508662]
[1674248381522,0.45,22286.0,22281.0,0.52623062]
[1674248381784,0.15,22285.0,22281.0,0.71035305]
[1674248382081,0.15,22285.0,22281.0,0.52533062]
[1674248382343,0.582612,22287.0,22281.0,0.71035305]
[1674248382569,0.0039743,22288.0,22284.0,0.52533062]
[1674248382854,0.1539743,22288.0,22285.0,0.18502243]
[1674248383412,0.16937173,22288.0,22280.0,0.448824]
[1674248383685,0.1339,22286.0,22282.0,0.15]
[1674248383947,0.1339,22286.0,22281.0,0.52533062]
[1674248384457,0.58837315,22286.0,22281.0,0.52533062]
[1674248384739,0.15,22284.0,22281.0,0.52533062]
[1674248385005,0.13165082,22286.0,22281.0,0.52533062]
[1674248385286,0.13165082,22286.0,22281.0,0.71035305]
[1674248385536,0.13165082,22286.0,22281.0,1.16986964]
[1674248385784,0.0084743,22288.0,22284.0,0.52533062]
[1674248386031,0.0084743,22288.0,22284.0,0.71035305]
[1674248386316,0.448692,22287.0,22281.0,0.52533062]
[1674248386551,0.1411743,22288.0,22284.0,0.52533062]
[1674248386807,0.0084743,22288.0,22285.0,0.18502243]
[1674248387069,0.0084743,22288.0,22287.0,0.52533062]
[1674248387356,0.0084743,22288.0,22287.0,0.83120162]
[1674248388337,0.0084743,22288.0,22287.0,1.27989362]
[1674248388663,0.0084743,22288.0,22287.0,0.94242516]
[1674248388888,4.3e-06,22288.0,22287.0,1.54111716]
[1674248389135,0.01700834,22291.0,22287.0,1.54111716]
[1674248389391,0.01700834,22291.0,22288.0,0.311495]
[1674248389706,0.01700834,22291.0,22290.0,0.67533062]
[1674248390082,0.01700834,22291.0,22290.0,1.43542762]
[1674248390084,0.01475966,22291.0,22290.0,1.28542762]
[1674248390327,0.01475966,22291.0,22290.0,0.83679662]
[1674248390571,0.01475966,22291.0,22290.0,0.311466]
[1674248390808,0.07290966,22291.0,22287.0,0.97401562]
[1674248391055,0.54759608,22291.0,22286.0,0.448698]
[1674248391305,0.1332,22287.0,22285.0,2.0733]
[1674248391810,0.233567,22286.0,22285.0,2.0733]
[1674248392069,0.77003315,22286.0,22278.0,0.97419862]
[1674248392315,0.1339,22280.0,22275.0,0.52533062]
[1674248392583,0.15,22278.0,22275.0,0.52533062]
[1674248392797,0.1339,22280.0,22275.0,0.52533062]
[1674248393029,0.1339,22282.0,22277.0,0.52533062]
[1674248393269,0.1339,22282.0,22273.0,0.52533062]
[1674248393270,0.45447315,22281.0,22273.0,0.52533062]
[1674248393514,0.15,22279.0,22273.0,0.52533062]
[1674248393774,0.307808,22278.0,22273.0,0.52533062]
[1674248394096,0.45,22279.0,22273.0,0.52533062]
[1674248394341,0.4338,22282.0,22276.0,0.52033062]
[1674248394584,0.448758,22284.0,22274.0,0.18502243]
[1674248394585,0.448752,22284.0,22279.0,0.52033062]
[1674248394827,0.5832,22285.0,22279.0,0.52033062]
[1674248394828,0.00251098,22291.0,22280.0,0.18502243]
[1674248395073,0.45698413,22291.0,22284.0,0.52033062]
[1674248395319,0.45113098,22291.0,22285.0,0.18502243]
[1674248395611,0.45113098,22291.0,22284.0,0.65451062]
[1674248395612,0.01800998,22288.0,22286.0,0.48502243]
[1674248396382,0.01800998,22288.0,22286.0,0.93372543]
[1674248396624,0.01800998,22288.0,22287.0,0.319502]
[1674248396856,0.015761,22288.0,22287.0,0.918194]
[1674248397101,0.015761,22288.0,22287.0,0.319502]
[1674248397343,0.015761,22288.0,22286.0,0.3]
[1674248397825,0.4685618,22293.0,22287.0,0.15]
[1674248398062,0.0199818,22293.0,22288.0,0.70535305]
[1674248398581,0.15,22291.0,22288.0,0.52033062]
[1674248398823,0.315629,22290.0,22288.0,0.52033062]
[1674248399071,0.01772231,22295.0,22289.0,0.897302]
[1674248399332,0.01772231,22295.0,22293.0,0.52017716]
[1674248399571,0.01772231,22295.0,22294.0,1.09741643]
[1674248399814,0.01772231,22295.0,22294.0,1.28602251]
[1674248400045,0.01772231,22295.0,22294.0,0.912394]
[1674248400046,0.01547403,22295.0,22294.0,0.912394]
[1674248400320,0.01547403,22295.0,22294.0,0.94741643]
[1674248400568,0.23379728,22297.0,22294.0,0.912394]
[1674248400806,0.23379728,22297.0,22295.0,0.307336]
[1674248401060,0.23379728,22297.0,22293.0,0.52017716]
[1674248401061,0.36649728,22297.0,22293.0,0.52017716]
[1674248401312,0.1339,22294.0,22289.0,2.66877716]
[1674248401569,0.317791,22293.0,22289.0,2.66877716]
[1674248401814,0.0321291,22293.0,22289.0,2.1486]
[1674248402058,0.603297,22292.0,22289.0,2.1486]
[1674248402310,0.31862,22291.0,22289.0,2.1486]
[1674248402564,0.31151,22290.0,22289.0,2.1486]
[1674248402808,0.46151,22290.0,22289.0,2.1486]
[1674248403052,0.46151,22290.0,22284.0,0.52017716]
[1674248403296,0.323168,22289.0,22285.0,0.18502243]
[1674248403544,0.15,22294.0,22288.0,0.52017716]
[1674248403801,0.0035,22295.0,22292.0,0.52017716]
[1674248404071,0.0035,22295.0,22293.0,0.18502243]
[1674248404322,0.0035,22295.0,22294.0,1.08816443]
[1674248404575,0.0035,22295.0,22294.0,0.903142]
[1674248404817,0.0035,22295.0,22294.0,1.08816443]
[1674248405073,0.0035,22295.0,22294.0,0.903142]
[1674248405565,0.0035,22295.0,22294.0,0.23256923]
[1674248405811,0.0035,22295.0,22294.0,0.17284387]
[1674248406056,0.01832325,22297.0,22295.0,0.0035]
[1674248406298,3.25e-06,22297.0,22296.0,1.91612159]
[1674248406543,3.25e-06,22297.0,22296.0,2.0223912]
[1674248406812,3.25e-06,22297.0,22296.0,3.72989916]
[1674248407551,3.25e-06,22297.0,22296.0,3.28138916]
[1674248408034,3.25e-06,22297.0,22296.0,2.51897716]
[1674248408279,3.25e-06,22297.0,22296.0,2.81602235]
[1674248408524,0.01851481,22304.0,22297.0,0.41864944]
[1674248408777,0.01851481,22304.0,22303.0,0.50166235]
[1674248409044,0.01851481,22304.0,22303.0,1.42050478]
[1674248409303,0.12882867,22314.0,22303.0,2.00767793]
[1674248409304,0.21547403,22312.0,22303.0,2.00767793]
[1674248409556,0.21547403,22312.0,22311.0,0.47166235]
[1674248409800,0.21547403,22312.0,22311.0,1.86773178]
[1674248410301,0.21547403,22312.0,22311.0,1.68270935]
[1674248410540,0.02250015,22314.0,22311.0,2.13091835]
[1674248410783,0.02250015,22314.0,22312.0,0.156825]
[1674248411034,0.02250015,22314.0,22309.0,0.3]
[1674248411035,0.4769733,22314.0,22309.0,0.3]
[1674248411537,0.15,22313.0,22309.0,0.3]
[1674248411793,0.76621215,22312.0,22309.0,0.3]
[1674248412034,0.1339,22310.0,22307.0,1.89009042]
[1674248412293,0.1339,22308.0,22300.0,0.448411]
[1674248412536,0.1339,22308.0,22298.0,0.47166235]
[1674248412537,0.1339,22306.0,22298.0,0.47166235]
[1674248412849,0.314752,22305.0,22298.0,1.31846479]
[1674248413100,0.3,22306.0,22298.0,0.47166235]
[1674248413342,0.15,22304.0,22298.0,0.18502243]
[1674248413582,0.315257,22303.0,22299.0,0.47166235]
[1674248413857,0.15,22304.0,22299.0,0.92010335]
[1674248414097,0.63286315,22304.0,22297.0,2.34838]
[1674248414350,0.0085,22303.0,22297.0,1.8999]
[1674248414587,0.1327,22298.0,22297.0,1.8999]
[1674248414832,0.89530815,22298.0,22297.0,1.8999]
[1674248415078,1.37452877,22298.0,22289.0,0.92030535]
[1674248415313,1.37452877,22298.0,22289.0,0.47166235]
[1674248415314,1.39324915,22297.0,22289.0,0.47166235]
[1674248415601,0.302962,22296.0,22292.0,0.47166235]
[1674248415838,0.302962,22296.0,22289.0,0.47166235]
[1674248415839,0.323281,22295.0,22289.0,0.47166235]
[1674248416090,0.90860815,22294.0,22287.0,2.28566235]
[1674248416335,0.15,22292.0,22287.0,1.814]
[1674248416585,0.76697215,22291.0,22287.0,1.814]
[1674248416824,1.07861115,22290.0,22287.0,1.814]
[1674248417090,0.75668615,22289.0,22287.0,1.814]
[1674248417331,0.898337,22292.0,22285.0,0.00374736]
[1674248417332,0.32703,22288.0,22285.0,0.00374736]
[1674248417572,0.32587,22287.0,22286.0,0.47166235]
[1674248417805,1.20309915,22291.0,22285.0,0.00374736]
[1674248418039,1.09489942,22290.0,22285.0,0.18876979]
[1674248418277,0.93051515,22289.0,22285.0,0.18876979]
[1674248418537,0.325362,22288.0,22285.0,0.18876979]
[1674248418793,0.14946,22292.0,22286.0,0.47166235]
[1674248419098,0.13919,22292.0,22287.0,0.18502243]
[1674248419338,0.15,22294.0,22291.0,0.47166235]
[1674248419582,0.31699,22297.0,22292.0,0.18502243]
[1674248419822,0.45420315,22296.0,22293.0,0.18502243]
[1674248420075,0.90105215,22295.0,22287.0,0.47166235]
[1674248420317,0.1327,22292.0,22285.0,0.00374736]
[1674248420551,0.31259655,22291.0,22285.0,0.00374736]
[1674248420798,0.581306,22292.0,22285.0,0.00374736]
[1674248420799,0.454951,22290.0,22285.0,0.00374736]
[1674248421049,0.14973,22288.0,22285.0,0.00374736]
[1674248421297,0.314642,22287.0,22285.0,0.00374736]
[1674248421544,0.88992187,22286.0,22285.0,0.00374736]
[1674248421800,1.32285187,22286.0,22283.0,1.6715]
[1674248422032,0.314363,22285.0,22283.0,1.6715]
[1674248422273,0.15,22291.0,22284.0,0.47166235]
[1674248422544,0.70069787,22290.0,22284.0,0.18502243]
[1674248422788,0.70069787,22290.0,22283.0,1.6715]
[1674248422789,0.1339,22287.0,22283.0,1.6715]
[1674248423023,0.87151769,22286.0,22284.0,0.01202123]
[1674248423260,0.58810315,22285.0,22284.0,0.01202123]
[1674248423506,1.36223115,22285.0,22279.0,0.47166235]
[1674248423779,0.1339,22280.0,22278.0,0.00374736]
[1674248424038,0.310021,22279.0,22278.0,0.47540971]
[1674248424675,0.0727,22282.0,22278.0,0.70797311]
[1674248424889,0.0727,22282.0,22279.0,0.50433743]
[1674248425108,0.0727,22282.0,22281.0,0.47166235]
[1674248425343,0.0727,22282.0,22281.0,1.12456378]
[1674248425648,0.14973,22293.0,22281.0,1.3901709]
[1674248425892,0.14973,22293.0,22284.0,0.92040235]
[1674248425893,0.53454879,22292.0,22284.0,0.92040235]
[1674248426150,0.13184205,22287.0,22285.0,0.18502243]
[1674248426418,0.13184205,22287.0,22284.0,4.89083176]
[1674248426419,0.45447315,22286.0,22284.0,4.89083176]
[1674248426645,0.1327,22285.0,22284.0,4.41916941]
[1674248427148,0.448684,22288.0,22284.0,4.41916941]
[1674248427149,0.1339,22288.0,22284.0,4.41916941]
[1674248427411,0.1339,22288.0,22284.0,4.60419184]
[1674248427412,0.88837315,22288.0,22284.0,4.60419184]
[1674248427749,0.1289,22288.0,22285.0,0.65668478]
[1674248427987,0.598595,22292.0,22285.0,0.65668478]
[1674248427988,0.582495,22292.0,22285.0,0.65668478]
[1674248428232,0.15,22291.0,22289.0,0.47166235]
[1674248428481,0.1338,22295.0,22290.0,0.18502243]
[1674248428730,0.1339,22292.0,22291.0,0.18502243]
[1674248429000,0.1339,22292.0,22290.0,4.41916941]
[1674248429221,0.01100001,22292.0,22291.0,4.41916941]
[1674248429727,0.01100001,22292.0,22291.0,4.60419184]
[1674248430009,0.00875143,22292.0,22291.0,4.93426284]
[1674248430290,0.00875143,22292.0,22291.0,4.74924041]
[1674248430516,0.15,22301.0,22291.0,4.74924041]
[1674248430767,0.15246109,22304.0,22300.0,0.47166235]
[1674248431023,0.01926109,22304.0,22301.0,0.45387943]
[1674248431273,0.45447315,22303.0,22300.0,4.41916941]
[1674248431562,0.15316109,22304.0,22299.0,0.47166235]
[1674248431563,0.58837315,22302.0,22299.0,0.47166235]
[1674248431807,0.309328,22301.0,22299.0,4.22795196]
[1674248432053,0.45447315,22303.0,22299.0,4.04292953]
[1674248432300,0.60151209,22304.0,22299.0,4.04292953]
[1674248432301,0.15316109,22304.0,22299.0,4.04292953]
[1674248432569,0.1339,22302.0,22299.0,3.57126718]
[1674248432807,0.1339,22300.0,22299.0,3.57126718]
[1674248433060,0.71959879,22300.0,22296.0,0.47166235]
[1674248433316,1.03565479,22299.0,22296.0,0.47166235]
[1674248433587,0.1339,22297.0,22293.0,0.47166235]
[1674248433847,0.44527687,22296.0,22293.0,0.47166235]
[1674248434144,0.45447315,22295.0,22292.0,3.57126718]
[1674248434368,0.1339,22293.0,22292.0,3.57126718]
[1674248434607,1.03481748,22293.0,22292.0,2.59486718]
[1674248434857,1.47112661,22293.0,22288.0,0.47166235]
[1674248435108,0.1339,22289.0,22285.0,0.47166235]
[1674248435394,0.43657287,22288.0,22285.0,0.25832395]
[1674248435653,0.317891,22287.0,22285.0,0.25832395]
[1674248435879,0.324868,22286.0,22285.0,0.25832395]
[1674248436620,0.546268,22286.0,22285.0,0.25832395]
[1674248436869,0.54401882,22286.0,22285.0,0.25832395]
[1674248437123,0.382029,22286.0,22285.0,0.25832395]
[1674248437381,0.515929,22286.0,22285.0,0.25832395]
[1674248437930,0.51367982,22286.0,22285.0,0.25832395]
[1674248438147,1.46974587,22286.0,22285.0,0.25832395]
[1674248438401,0.15,22285.0,22282.0,0.25832395]
[1674248438649,1.80881915,22284.0,22282.0,0.2626603]
[1674248438918,1.80881915,22284.0,22280.0,0.00433635]
[1674248438919,1.44890172,22283.0,22280.0,0.00433635]
[1674248439183,0.1339,22281.0,22280.0,0.00433635]
[1674248439470,0.447216,22281.0,22280.0,0.00433635]
[1674248440201,1.35168915,22281.0,22280.0,0.00433635]
[1674248441202,1.21778915,22281.0,22280.0,0.00433635]
[1674248441946,1.21778915,22281.0,22280.0,6.35e-06]
[1674248442208,1.21778915,22281.0,22279.0,0.07122635]
[1674248442209,1.60854451,22281.0,22279.0,0.07122635]
[1674248442456,1.97203115,22280.0,22279.0,6.35e-06]
[1674248442711,1.97203115,22280.0,22278.0,0.00374736]
[1674248442995,0.77861315,22279.0,22278.0,0.00374736]
[1674248443251,1.22861315,22279.0,22278.0,0.00374736]
[1674248443489,0.15,22278.0,22276.0,0.26165188]
[1674248443755,0.77663915,22277.0,22276.0,0.26165188]
[1674248444009,1.22663915,22277.0,22276.0,0.26165188]
[1674248444865,1.22438906,22277.0,22276.0,0.26165188]
[1674248445530,0.92438906,22277.0,22276.0,0.26165188]
[1674248445758,1.07773898,22277.0,22276.0,0.26165188]
[1674248445975,1.35955378,22277.0,22276.0,0.26165188]
[1674248446197,0.62776601,22277.0,22276.0,0.26165188]
[1674248446632,0.62767376,22277.0,22276.0,0.26165188]
[1674248446842,1.38214691,22277.0,22276.0,0.26165188]
[1674248447278,0.47767376,22277.0,22276.0,0.44667431]
[1674248447532,0.15560001,22277.0,22276.0,0.25665188]
[1674248448828,0.15334992,22277.0,22276.0,0.25665188]
[1674248449052,0.46699992,22277.0,22274.0,0.15374736]
[1674248449281,0.306313,22276.0,22274.0,0.00374736]
[1674248449456,0.322665,22275.0,22274.0,0.00374736]
[1674248449713,0.15334992,22277.0,22274.0,0.26039924]
[1674248449714,0.15109983,22277.0,22274.0,0.26039924]
[1674248449931,0.15,22276.0,22274.0,0.26039924]
[1674248450161,0.15109983,22277.0,22274.0,0.25539924]
[1674248450162,0.305124,22275.0,22274.0,0.25539924]
[1674248450674,0.605124,22275.0,22274.0,0.25539924]
[1674248450917,0.30287391,22275.0,22274.0,0.25539924]
[1674248451131,0.60287391,22275.0,22274.0,0.25539924]
[1674248451562,0.30287391,22275.0,22274.0,0.25539924]
[1674248451789,0.15109983,22277.0,22274.0,0.25539924]
[1674248452023,0.15109983,22277.0,22274.0,0.44042167]
[1674248452456,0.15109983,22277.0,22274.0,0.25539924]
[1674248452818,0.15109983,22277.0,22274.0,0.40539924]
[1674248453032,0.15109983,22277.0,22274.0,1.03936867]
[1674248453250,0.15109983,22277.0,22274.0,0.40539924]
[1674248453502,1.48127702,22276.0,22273.0,0.07261]
[1674248453743,0.91783602,22275.0,22273.0,0.07261]
[1674248453955,1.66308215,22274.0,22273.0,0.06241737]
[1674248454216,1.94206002,22274.0,22273.0,0.06241737]
[1674248454478,2.05369045,22274.0,22273.0,0.06241737]
[1674248454666,2.45929045,22274.0,22273.0,0.03525531]
[1674248454885,2.45929045,22274.0,22272.0,0.00431008]
[1674248455119,0.634437,22273.0,22272.0,0.00431008]
[1674248455340,0.634437,22273.0,22270.0,0.4]
[1674248455341,1.78618659,22273.0,22270.0,0.4]
[1674248455576,0.2564,22271.0,22270.0,0.4]
[1674248455790,2.20670315,22271.0,22270.0,0.4]
[1674248456002,2.15335856,22271.0,22270.0,0.4]
[1674248457153,2.60237256,22271.0,22270.0,0.4]
[1674248457379,2.60237256,22271.0,22265.0,0.00442844]
[1674248457380,0.23368806,22267.0,22265.0,0.00442844]
[1674248457622,2.53951502,22266.0,22265.0,0.25982768]
[1674248457839,2.56053715,22266.0,22265.0,0.25982768]
[1674248458057,2.85060967,22266.0,22265.0,0.25982768]
[1674248458268,2.56053715,22266.0,22265.0,0.25982768]
[1674248458509,1.075134,22266.0,22265.0,0.01696263]
[1674248458722,1.52960715,22266.0,22265.0,0.01696263]
[1674248459380,1.52960715,22266.0,22265.0,0.01672263]
[1674248459614,1.95858502,22266.0,22264.0,0.004349]
[1674248459829,1.21141415,22265.0,22264.0,0.004349]
[1674248460045,1.66054915,22265.0,22264.0,0.004349]
[1674248460256,0.15,22264.0,22262.0,0.01607163]
[1674248460472,1.68023315,22263.0,22262.0,0.01607163]
[1674248460680,1.98023315,22263.0,22262.0,0.01607163]
[1674248460925,0.62741,22263.0,22262.0,0.01607163]
[1674248461163,1.076585,22263.0,22262.0,0.01607163]
[1674248461379,0.77741,22263.0,22262.0,0.01607163]
[1674248461715,0.77515849,22263.0,22262.0,0.01607163]
[1674248461968,0.47515849,22263.0,22262.0,0.01607163]
[1674248462450,0.32515849,22263.0,22262.0,0.20109406]
[1674248462678,0.308212,22263.0,22262.0,0.01107163]
[1674248463187,0.30596049,22263.0,22262.0,0.01107163]
[1674248463689,0.312014,22263.0,22262.0,0.07975163]
[1674248463923,0.036,22265.0,22262.0,0.01107163]
[1674248464395,0.485142,22265.0,22262.0,0.01107163]
[1674248464633,0.311676,22264.0,22262.0,0.01107163]
[1674248464926,0.485142,22265.0,22262.0,0.01107163]
[1674248464927,0.303712,22263.0,22262.0,0.01107163]
[1674248465168,0.036,22265.0,22262.0,0.07975163]
[1674248465883,0.036,22265.0,22262.0,0.00832314]
[1674248466610,0.22367668,22265.0,22262.0,0.00832314]
[1674248466837,0.30914569,22263.0,22262.0,0.00832314]
[1674248467061,0.30914569,22263.0,22257.0,0.91550116]
[1674248467296,0.75070987,22262.0,22257.0,0.91550116]
[1674248467531,0.75280087,22261.0,22257.0,0.91350116]
[1674248467764,0.12897787,22261.0,22258.0,0.15]
[1674248467999,0.3,22262.0,22257.0,0.91350116]
[1674248468231,0.49809852,22262.0,22257.0,1.09852359]
[1674248468489,0.42672637,22261.0,22257.0,0.91350116]
[1674248468721,0.15,22259.0,22257.0,0.91350116]
[1674248468961,0.30762,22258.0,22255.0,2.59486718]
[1674248469198,0.313625,22257.0,22255.0,2.59486718]
[1674248469441,0.12672637,22256.0,22255.0,2.59486718]
[1674248469674,0.12672637,22256.0,22253.0,0.00490592]
[1674248469675,0.315326,22256.0,22253.0,0.00490592]
[1674248469904,0.44594137,22255.0,22253.0,0.00490592]
[1674248470161,0.331843,22254.0,22253.0,0.00490592]
[1674248470417,0.599304,22257.0,22253.0,0.00490592]
[1674248470651,0.749285,22258.0,22253.0,0.00490592]
[1674248470652,0.324261,22256.0,22253.0,0.18992835]
[1674248470901,0.449285,22258.0,22253.0,0.00490592]
[1674248471137,0.875158,22257.0,22253.0,0.00490592]
[1674248471369,0.3785,22255.0,22253.0,0.00490592]
[1674248472069,0.37624799,22255.0,22253.0,0.00490592]
[1674248472352,1.33055652,22254.0,22253.0,0.00490592]
[1674248472590,1.20383015,22254.0,22253.0,0.00490592]
[1674248472818,1.35383015,22254.0,22247.0,0.15]
[1674248473056,0.73119952,22253.0,22247.0,0.15]
[1674248473302,0.74438137,22252.0,22246.0,2.30521801]
[1674248473560,0.89975052,22251.0,22240.0,2.75484801]
[1674248473819,1.79247352,22250.0,22241.0,1.711007]
[1674248474068,0.45447315,22248.0,22241.0,1.2614]
[1674248474311,0.32395611,22249.0,22241.0,3.41661801]
[1674248474312,1.753195,22246.0,22241.0,3.41661801]
[1674248474559,1.753195,22246.0,22239.0,0.00490692]
[1674248474560,0.90540652,22245.0,22239.0,0.00490692]
[1674248474810,0.45562455,22244.0,22239.0,0.00490692]
[1674248475079,0.331833,22243.0,22239.0,0.00490692]
[1674248475313,0.12672637,22243.0,22239.0,0.00490692]
[1674248475563,0.12672637,22242.0,22239.0,0.00490692]
[1674248475820,0.325987,22241.0,22239.0,0.00490692]
[1674248476047,0.320121,22240.0,22239.0,0.00490692]
[1674248476768,0.31786727,22240.0,22239.0,0.00490692]
[1674248477262,0.15,22244.0,22239.0,0.52322792]
[1674248477498,0.768975,22249.0,22240.0,0.50188843]
[1674248477499,0.485475,22249.0,22240.0,0.50188843]
[1674248477766,0.036,22249.0,22241.0,0.63462543]
[1674248478013,0.599439,22250.0,22242.0,0.18502243]
[1674248478505,0.449466,22249.0,22242.0,0.18502243]
[1674248478722,0.599381,22253.0,22243.0,0.33502243]
[1674248478970,0.449342,22255.0,22244.0,0.95050243]
[1674248479206,0.449345,22255.0,22245.0,0.37181543]
[1674248479441,0.449345,22255.0,22245.0,0.186793]
[1674248479667,0.449345,22255.0,22245.0,0.336793]
[1674248479970,0.53084677,22246.0,22245.0,0.336793]
[1674248480201,0.53084677,22246.0,22245.0,0.84819805]
[1674248480436,0.53084677,22246.0,22245.0,0.66317562]
[1674248480684,0.036,22257.0,22246.0,0.22695323]
[1674248480916,0.036,22257.0,22248.0,0.898933]
[1674248481153,0.449295,22258.0,22249.0,0.37176643]
[1674248481395,0.449295,22258.0,22250.0,0.63444443]
[1674248481654,0.15,22260.0,22252.0,0.15]
[1674248481881,0.0196,22254.0,22253.0,0.18502243]
[1674248482121,0.08775,22254.0,22252.0,0.449379]
[1674248482589,0.08775,22254.0,22249.0,0.15]
[1674248482824,0.12672637,22253.0,22249.0,0.15]
[1674248483289,0.0196,22254.0,22249.0,0.85932352]
[1674248483526,0.0196,22254.0,22250.0,0.18502243]
[1674248483788,0.0196,22254.0,22252.0,0.634389]
[1674248484025,0.0196,22254.0,22253.0,0.309864]
[1674248484255,0.0196,22254.0,22253.0,1.462564]
[1674248484761,0.0196,22254.0,22253.0,1.612564]
[1674248484996,0.0896,22254.0,22253.0,1.612564]
[1674248485222,0.0896,22254.0,22253.0,1.85936818]
[1674248485465,0.0896,22254.0,22253.0,1.612564]
[1674248486192,0.23368806,22267.0,22257.0,1.347834]
[1674248486428,0.23368806,22267.0,22259.0,0.1333]
[1674248486658,0.23368806,22267.0,22261.0,0.898416]
[1674248486917,0.23368806,22267.0,22262.0,0.49473943]
[1674248487143,0.23368806,22267.0,22263.0,0.82672743]
[1674248487388,0.23368806,22267.0,22264.0,0.49470943]
[1674248487644,0.23368806,22267.0,22265.0,0.82667843]
[1674248487880,0.23368806,22267.0,22265.0,0.18502243]
[1674248488121,0.23368806,22267.0,22265.0,0.15]
[1674248488593,0.23368806,22267.0,22265.0,0.337236]
[1674248488826,0.23368806,22267.0,22266.0,0.164949]
[1674248489328,0.23368806,22267.0,22266.0,0.314949]
[1674248490073,0.36041443,22267.0,22266.0,0.145]
[1674248490327,0.81488758,22267.0,22264.0,0.15]
[1674248490570,1.27512728,22266.0,22260.0,0.15]
[1674248490820,1.27512728,22266.0,22255.0,0.449329]
[1674248490821,0.91548852,22265.0,22255.0,0.449329]
[1674248491070,0.068258,22260.0,22259.0,0.15]
[1674248491308,0.068258,22260.0,22255.0,1.9140607]
[1674248491309,0.19498437,22260.0,22255.0,2.09908313]
[1674248491547,0.12672637,22259.0,22255.0,1.7947807]
[1674248491786,0.12672637,22258.0,22256.0,0.15]
[1674248492020,0.000108,22260.0,22257.0,0.328781]
[1674248492261,0.303524,22259.0,22252.0,1.1105]
[1674248492496,0.44599537,22258.0,22252.0,1.1105]
[1674248492745,0.44599537,22258.0,22253.0,0.15]
[1674248492746,1.213866,22257.0,22253.0,0.15]
[1674248493033,0.308226,22256.0,22250.0,0.44943]
[1674248493265,0.14472638,22255.0,22249.0,0.449455]
[1674248493555,0.12672637,22254.0,22250.0,0.15]
[1674248493796,0.12672637,22254.0,22251.0,0.752598]
[1674248494043,0.01800001,22255.0,22252.0,0.199353]
[1674248494292,0.01800001,22255.0,22253.0,0.301353]
[1674248494527,0.01800001,22255.0,22254.0,0.15]
[1674248494753,0.01800001,22255.0,22254.0,0.14]
[1674248495495,0.08615001,22255.0,22252.0,0.15]
[1674248495984,0.01800001,22255.0,22252.0,0.7192732]
[1674248496222,0.01800001,22255.0,22252.0,0.90429563]
[1674248496463,0.01800001,22255.0,22254.0,0.15]
[1674248496749,0.01800001,22255.0,22254.0,0.797001]
[1674248496991,0.01800001,22255.0,22254.0,1.17858695]
[1674248497221,0.01800001,22255.0,22254.0,0.797001]
[1674248497451,0.01800001,22255.0,22254.0,0.12487116]